{"text_format":"3","workbook":"xlsx","n_sheets":1,"sheets":["На сайт"],"not_rendered":{"defined_names":1},"read":"whole","date_system":"1900"}

{"sheet":"На сайт","index":0,"n_rows":177,"n_cols":15,"rows_kept":177,"merged":[[0,0,0,14]]}
["Итоговый протокол по итогам муниципального этапа ВсОШ по предмету АСТРОНОМИЯ в 2019-2020 учебном году   "]
["№ п/п","Муниципалитет","Полное наименование образовательного учреждения (по уставу)","Фамилия","Имя","Отчество","Класс обучения","Класс участия","Балл","Maкс. Балл","Апеляционный балл","Итоговый балл","Статус","Фамилия педагога, подготовившего участника олимпиады","Полное наименование образовательного учреждения (по уставу)"]
[22,"Приволжский район","ОШИ «IT-лицей ФГАОУ ВО «К(П)ФУ»","Алиуллов ","Б","А",7,7,25,48,null,{"$f":"I3+K3","v":25},"Призер","Гайнутдинова Суюмбика Закировна","ОШИ \"IT-лицей ФГАОУ ВО К(П)ФУ"]
[34,"Советский район","МБОУ \"Гимназия №93\" Советского района ","Артемьев","Г","А",7,7,17,48,null,17,"Участник","Арсланова Римма Габдулхаковна","МБОУ \"Гимназия №93\""]
[30,"Советский район","МБОУ \"Лицей №110\"Советского района ","Астафьев","А","А",7,7,19,48,null,19,"Участник","Баскова Мария Аркадьевна","МБОУ \"Лицей № 110\""]
[11,"Приволжский район","ОШИ «IT-лицей ФГАОУ ВО «К(П)ФУ»","Байбуров","А","Л",7,7,29,48,null,29,"Призер","Гайнутдинова Суюмбика Закировна","ОШИ \"IT-лицей ФГАОУ ВО К(П)ФУ"]
[1,"Московский район","МАОУ \"Лицей-интернат №2\" Московского района ","Белосков","М","А",7,7,45,48,null,45,"Победитель","Шакиров Ильдар Акдясович","МАОУ \"Лицей-интернат №2\" Московского района "]
[39,"Приволжский район","МБОУ «Гимназия №6» Приволжского района ","Вафин","Э","Т",7,7,15,48,null,15,"Участник","ПолукееваВ.М.","МБОУ\"Гимназия №6"]
[17,"Московский район","МАОУ \"Лицей-интернат №2\" Московского района ","Габитов","А","Р",6,7,26,48,null,26,"Призер","Шакиров Ильдар Акдясович","МАОУ \"Лицей-интернат №2\" Московского района "]
[13,"Московский район","МАОУ \"Лицей-интернат №2\" Московского района ","Габитов","И","Р",6,7,28,48,null,28,"Призер","Шакиров Ильдар Акдясович","МАОУ \"Лицей-интернат №2\" Московского района "]
[15,"Московский район","МАОУ \"Лицей-интернат №2\" Московского района ","Галеев","Д","Р",7,7,27,48,null,27,"Призер","Шакиров Ильдар Акдясович","МАОУ \"Лицей-интернат №2\" Московского района "]
[40,"Московский район","МБОУ \"Татарская гимназия №2 при КФУ\" Московского района ","Галиуллин ","М","И",7,7,15,48,null,15,"Участник","Мухаметзянова Алсу Ильдусовна","гимназия №2"]
[29,"Московский район","МАОУ \"Лицей-интернат №2\" Московского района ","Гатауллин","А","И",6,7,20,48,null,20,"Участник","Шакиров Ильдар Акдясович","МАОУ \"Лицей-интернат №2\" Московского района "]
[16,"Авиастроительный район","МБОУ \"Гимназия №33\" Авиастроительного района","Гиниатуллин ","Р","Р",7,7,27,48,null,27,"Призер","Горбунова Любовь Васильевна","Гимназия № 33"]
[41,"Приволжский район","МБОУ «Школа №42» Приволжского района ","Давлетшина","Д","А",7,7,15,48,null,15,"Участник","Гатина Люция Рафиковна","Школа № 42"]
[37,"Вахитовский район","Лицей имени Н.И. Лобачевского КФУ Вахитовского района","Демин","Д","Т",7,7,16,48,null,16,"Участник","Галеев Алмаз Ильсурович","Лицей имени Н.И. Лобачевского КФУ Вахитовского района"]
[20,"Приволжский район","ОШИ «IT-лицей ФГАОУ ВО «К(П)ФУ»","Закиров","Д","Р",7,7,25,48,null,25,"Призер","Гайнутдинова Суюмбика Закировна","ОШИ \"IT-лицей ФГАОУ ВО К(П)ФУ"]
[44,"Вахитовский район","ЧОУ «Академический Лицей» Вахитовского района","Иванова","М","А",7,7,13,48,null,13,"Участник","Ахметханова Александра Эмильевна","ЧОУ \"Академический Лицей им.Н.И.Лобачевского\""]
[32,"Вахитовский район","Лицей имени Н.И. Лобачевского КФУ Вахитовского района","Исхаков","К","Э",7,7,18,48,null,18,"Участник","Галеев Алмаз Ильсурович","ОШИ \"Лицей имени Н.И. Лобачевского\" КФУ"]
[26,"Приволжский район","МБОУ «Школа №42» Приволжского района ","Казаков","А","Э",7,7,22,48,null,22,"Участник","Гатина Люция Рафиковна","Школа № 42"]
[27,"Приволжский район","МБОУ «Лицей №35 – образовательный центр «Галактика» Приволжского района ","Калимуллина","Д","Д",7,7,22,48,null,22,"Участник","Григорьев Игорь Петрович","МБОУ \"Лицей №35\" Приволжского района г.Казань"]
[42,"Московский район","МАОУ \"Лицей-интернат №2\" Московского района ","Кафиятуллов","М","Р",6,7,15,48,null,15,"Участник","Шакиров Ильдар Акдясович","МАОУ \"Лицей-интернат №2\" Московского района "]
[35,"Приволжский район","МБОУ «Гимназия №6» Приволжского района ","Кондратьева ","А","А",7,7,17,48,null,17,"Участник","ПолукееваВ.М.","МБОУ\"Гимназия №6"]
[36,"Приволжский район","МБОУ «Лицей №35 – образовательный центр «Галактика» Приволжского района ","Криворотова","А","А",7,7,17,48,null,17,"Участник","Григорьев Игорь Петрович","МБОУ \"Лицей №35\" Приволжского района г.Казань"]
[43,"Ново-Савиновский район","МБОУ \"Гимназия 155\" Ново-Савиновского района","Куница","К","А",7,7,15,48,null,15,"Участник","Закиров Амир Ильдарович","Гимназия №155"]
[10,"Приволжский район","ОШИ «IT-лицей ФГАОУ ВО «К(П)ФУ»","Латфуллина ","Э","И",7,7,30,48,null,30,"Призер","Гайнутдинова Суюмбика Закировна","ОШИ \"IT-лицей ФГАОУ ВО К(П)ФУ"]
[12,"Приволжский район","ОШИ «IT-лицей ФГАОУ ВО «К(П)ФУ»","Малаев","А","В",7,7,29,48,null,29,"Призер","Гайнутдинова Суюмбика Закировна","ОШИ \"IT-лицей ФГАОУ ВО К(П)ФУ"]
[6,"Приволжский район","ОШИ «IT-лицей ФГАОУ ВО «К(П)ФУ»","Мингалимова","А","И",7,7,43,48,null,43,"Призер","Гайнутдинова Суюмбика Закировна","ОШИ \"IT-лицей ФГАОУ ВО К(П)ФУ"]
[23,"Приволжский район","ОШИ «IT-лицей ФГАОУ ВО «К(П)ФУ»","Молченко","А","С",7,7,25,48,null,25,"Призер","Гайнутдинова Суюмбика Закировна","ОШИ \"IT-лицей ФГАОУ ВО К(П)ФУ"]
[8,"Приволжский район","ОШИ «IT-лицей ФГАОУ ВО «К(П)ФУ»","Морозова ","Е","Д",7,7,34,48,null,34,"Призер","Гайнутдинова Суюмбика Закировна","ОШИ \"IT-лицей ФГАОУ ВО К(П)ФУ"]
[33,"Вахитовский район","МАОУ \"Лицей №131\" Вахитовского района ","Насретдинов","А","А",7,7,18,48,null,18,"Участник","Семенов Алексей Вячеславович","МАОУ \"Лицей №131\" Вахитовского района г.Казани"]
[21,"Московский район","МАОУ \"Лицей-интернат №2\" Московского района ","Насыров","С","И",6,7,25,48,null,25,"Призер","Шакиров Ильдар Акдясович","МАОУ \"Лицей-интернат №2\" Московского района "]
[14,"Московский район","МАОУ \"Лицей-интернат №2\" Московского района ","Наумов","Ю","А",7,7,28,48,null,28,"Призер","Шакиров Ильдар Акдясович","МАОУ \"Лицей-интернат №2\" Московского района "]
[38,"Советский район","МБОУ \"Лицей №110\"Советского района ","Осокин","А","Р",7,7,16,48,null,16,"Участник","Баскова Мария Аркадьевна","МБОУ \"Лицей № 110\""]
[4,"Московский район","МАОУ \"Лицей-интернат №2\" Московского района ","Рязанов","Д","Д",6,7,30,48,null,{"$f":"I35+K35","v":30},"Призер","Шакиров Ильдар Акдясович","МАОУ \"Лицей-интернат №2\" Московского района "]
[18,"Московский район","МАОУ \"Лицей-интернат №2\" Московского района ","Сабиров","М","Р",6,7,26,48,null,26,"Призер","Шакиров Ильдар Акдясович","МАОУ \"Лицей-интернат №2\" Московского района "]
[19,"Авиастроительный район","МБОУ \"Гимназия №33\" Авиастроительного района","Савченко","М","К",7,7,26,48,null,26,"Призер","Горбунова Любовь Васильевна","Гимназия № 33"]
[28,"Московский район","гимназия № 12","Самигуллина","Д","Р",6,7,20,48,null,20,"Участник","Григорьева Анна Игоревна","гимназия № 12"]
[2,"Московский район","МАОУ \"Лицей-интернат №2\" Московского района ","Семенов","А","В",6,7,38,48,null,38,"Призер","Шакиров Ильдар Акдясович","МАОУ \"Лицей-интернат №2\" Московского района "]
[9,"Приволжский район","ОШИ «IT-лицей ФГАОУ ВО «К(П)ФУ»","Султанов ","Д","Р",7,7,32,48,null,32,"Призер","Гайнутдинова Суюмбика Закировна","ОШИ \"IT-лицей ФГАОУ ВО К(П)ФУ"]
[47,"Приволжский район","МБОУ «Лицей №35 – образовательный центр «Галактика» Приволжского района ","Сырадоева","В","Д",7,7,11,48,null,11,"Участник","Григорьев Игорь Петрович","МБОУ \"Лицей №35\" Приволжского района г.Казань"]
[7,"Приволжский район","ОШИ «IT-лицей ФГАОУ ВО «К(П)ФУ»","Устинов","А","А",7,7,36,48,null,36,"Призер","Гайнутдинова Суюмбика Закировна","ОШИ \"IT-лицей ФГАОУ ВО К(П)ФУ"]
[48,"Вахитовский район","ЧОУ «Академический Лицей» Вахитовского района","Фазылова","Э","А",7,7,11,48,null,11,"Участник","Ахметханова Александра Эмильевна","ЧОУ \"Академический Лицей им.Н.И.Лобачевского\""]
[3,"Московский район","МАОУ \"Лицей-интернат №2\" Московского района ","Хамитов","Х","И",6,7,32,48,null,32,"Призер","Шакиров Ильдар Акдясович","МАОУ \"Лицей-интернат №2\" Московского района "]
[45,"Приволжский район","МБОУ «Лицей №35 – образовательный центр «Галактика» Приволжского района ","Харламова","А","В",7,7,13,48,null,13,"Участник","Григорьев Игорь Петрович","МБОУ \"Лицей №35\" Приволжского района г.Казань"]
[31,"Вахитовский район","Лицей имени Н.И. Лобачевского КФУ Вахитовского района","Хусейнов","А","Р",7,7,19,48,null,19,"Участник","Галеев Алмаз Ильсурович","ОШИ \"Лицей имени Н.И. Лобачевского\" КФУ"]
[25,"Приволжский район","ОШИ «IT-лицей ФГАОУ ВО «К(П)ФУ»","Шарафутдинов ","Д","М",7,7,23,48,null,23,"Участник","Гайнутдинова Суюмбика Закировна","ОШИ \"IT-лицей ФГАОУ ВО К(П)ФУ"]
[5,"Московский район","МАОУ \"Лицей-интернат №2\" Московского района ","Шарипов","Р","Р",6,7,30,48,null,30,"Призер","Шакиров Ильдар Акдясович","МАОУ \"Лицей-интернат №2\" Московского района "]
[46,"Приволжский район","МБОУ «Гимназия №6» Приволжского района ","Шуранова","А","А",7,7,12,48,null,12,"Участник","ПолукееваВ.М.","МБОУ\"Гимназия №6"]
[49,"Вахитовский район","Лицей имени Н.И. Лобачевского КФУ Вахитовского района","Якубов","Н","М",7,7,2,48,null,2,"Участник","Галеев Алмаз Ильсурович","ОШИ \"Лицей имени Н.И. Лобачевского\" КФУ"]
[null,"Авиастроительный район","МБОУ \"Гимназия №33\" Авиастроительного района","Яровиков","А","Е",7,7,25,48,null,25,"Призер","Горбунова Любовь Васильевна","Гимназия № 33"]
[99,"Советский район","МБОУ \"Многопрофильная школа №181\" Советского района ","Алексеева","Е","М",8,8,12,48,null,{"$f":"I52","v":12},"Участник","Файзрахманова Зиля            Ямильевна","МБОУ \"Многопрофильная школа №181\""]
[90,"Московский район","МБОУ \"Татарская гимназия №2 при КФУ\" Московского района ","Багавиев","А","А",8,8,22,48,null,22,"Участник","Мухаметзянова Алсу Ильдусовна","гимназия №2"]
[108,"Приволжский район","ОШИ «IT-лицей ФГАОУ ВО «К(П)ФУ»","Бадуртдинова","Г","А",8,8,24,48,null,24,"Призер","Гайнутдинова Суюмбика Закировна","ОШИ \"IT-лицей ФГАОУ ВО К(П)ФУ"]
[96,"Авиастроительный район","МБОУ \"Гимназия №33\" Авиастроительного района","Баталина ","А","Р",8,8,16,48,null,16,"Участник","Горбунова Любовь Васильевна","Гимназия № 33"]
[71,"Приволжский район","МБОУ «СОШ №129» Приволжского района","Бикметов","В","Р",8,8,30,48,null,30,"Призер","Латфуллина М.Х.","СОШ №129"]
[107,"Советский район","МБОУ \"Гимназия №8 -Центр образования\" Советского района ","Борисов","Б","О",8,8,4,48,null,4,"Участник","Яковлева Надежда Петровна","Гимназия 8 - ЦО"]
[75,"Ново-Савиновский район","МБОУ \"Лицей №177\" Ново-Савиновского района","Бурдин","Д","Д",8,8,28,48,null,28,"Призер","Чуркин Константин Олегович","МБОУ \"Лицей №177\""]
[85,"Приволжский район","ОШИ «IT-лицей ФГАОУ ВО «К(П)ФУ»","Валиуллина","И","И",8,8,25,48,null,25,"Призер","Гайнутдинова Суюмбика Закировна","ОШИ \"IT-лицей ФГАОУ ВО К(П)ФУ"]
[89,"Ново-Савиновский район","Инженерный лицей-интернат КНИТУ-КАИ Ново-Савиновского района","Валиулов","Т","Т",8,8,23,48,null,23,"Участник","Заострожных Анна Мария Андреевна","Инженерный лицей-интернат КНИТУ-КАИ"]
[100,"Ново-Савиновский район","МБОУ «Школа №170» Ново-Савиновского района ","Гаврилов ","Д","С",8,8,12,48,null,12,"Участник","Титова И.В.","СОШ № 170"]
[83,"Приволжский район","Лицей-интернат «IТ-лицей К(П)ФУ»","Галауетдинов","Н","А",8,8,26,48,null,26,"Призер","Гайнутдинова Суюмбика Закировна","Лицей-интернат «IТ-лицей К(П)ФУ»"]
[82,"Приволжский район","МБОУ «Школа №42» Приволжского района ","Галиаскаров","Ф","А",8,8,27,48,null,27,"Призер","Леонтьев Сергей Васильевич","Школа № 42"]
[87,"Ново-Савиновский район","МБОУ \"Лицей №177\" Ново-Савиновского района","Гурин","А","А",8,8,25,48,null,25,"Призер","Чуркин Константин Олегович","МБОУ \"Лицей №177\""]
[101,"Приволжский район","МБОУ «Школа №42» Приволжского района ","Закиров","Р","И",8,8,12,48,null,12,"Участник","Леонтьев Сергей Васильевич","Школа № 42"]
[86,"Московский район","МАОУ \"Лицей-интернат №2\" Московского района ","Зарипов","Т","Р",8,8,25,48,null,25,"Призер","Шакиров Ильдар Акдясович","МАОУ \"Лицей-интернат №2\" Московского района "]
[76,"Приволжский район","ОШИ «IT-лицей ФГАОУ ВО «К(П)ФУ»","Иванова","А","Н",8,8,28,48,null,28,"Призер","Гайнутдинова Суюмбика Закировна","ОШИ \"IT-лицей ФГАОУ ВО К(П)ФУ"]
[105,"Приволжский район","МБОУ «Гимназия №6» Приволжского района ","Исаенков","Р","К",8,8,8,48,null,8,"Участник","Мочалова К.Б.","МБОУ\"Гимназия №6"]
[102,"Ново-Савиновский район","МБОУ «Школа №170» Ново-Савиновского района ","Калимуллин ","К","Э",8,8,12,48,null,12,"Участник","Титова И.В.","СОШ № 170"]
[72,"Приволжский район","Лицей-интернат «IТ-лицей К(П)ФУ»","Клюсов","И","А",8,8,30,48,null,30,"Призер","Гайнутдинова Суюмбика Закировна","Лицей-интернат «IТ-лицей К(П)ФУ»"]
[73,"Приволжский район","Лицей-интернат «IТ-лицей К(П)ФУ»","Краус","А","Ю",8,8,30,48,null,30,"Призер","Гайнутдинова Суюмбика Закировна","Лицей-интернат «IТ-лицей К(П)ФУ»"]
[77,"Приволжский район","МАОУ «Гимназия №139-Центр образования» Приволжского района ","Куприянова","А","Д",8,8,28,48,null,28,"Призер","Гайнутдинова Суюмбика Закировна","МАОУ \"Гимназия №139 - Центр Образования\" Приволжского района"]
[67,"Приволжский район","ОШИ «IT-лицей ФГАОУ ВО «К(П)ФУ»","Миназова","Ч","И",8,8,36,48,null,36,"Победитель","Гайнутдинова Суюмбика Закировна","ОШИ \"IT-лицей ФГАОУ ВО К(П)ФУ"]
[98,"Приволжский район","МАОУ «Гимназия №19» Приволжского района ","Миронов","В","А",8,8,14,48,null,14,"Участник","Фасфиев Булат Рашидович","МАОУ Гимназия 19"]
[78,"Приволжский район","ОШИ «IT-лицей ФГАОУ ВО «К(П)ФУ»","Муртазин","А","А",8,8,28,48,null,28,"Призер","Гайнутдинова Суюмбика Закировна","ОШИ \"IT-лицей ФГАОУ ВО К(П)ФУ"]
[92,"Московский район","МБОУ \"Татарская гимназия №2 при КФУ\" Московского района ","Мусин ","Н","М",8,8,20,48,null,20,"Участник","Мухаметзянова Алсу Ильдусовна","гимназия №2"]
[103,"Советский район","МБОУ \"Лицей №159\" Советского района","Мухаметшина ","Д","Р",8,8,12,48,null,12,"Участник","Мазитов Нияз Явдатович","МБОУ \"Лицей №159\""]
[79,"Вахитовский район","МАОУ «Лицей №131»","Мухлисуллин","А","А",8,8,28,48,null,28,"Призер","Серебрянская Лювиза Минисламовна"," МАОУ «Лицей №131» "]
[70,"Приволжский район","Лицей-интернат «IТ-лицей К(П)ФУ»","Нгуен Куанг Минх","К","К",8,8,32,48,null,32,"Призер","Гайнутдинова Суюмбика Закировна","Лицей-интернат «IТ-лицей К(П)ФУ»"]
[106,"Приволжский район","МБОУ «Лицей № 78 \"Фарватер\" » Приволжского района ","Нюбин","Б","Е",8,8,8,48,null,8,"Участник","Насырова Р.Р.","МБОУ \"Лицей №78 \"Фарватер\""]
[91,"Московский район","МБОУ \"Гимназия №94\" Московского района ","Савинов","Д","Д",8,8,22,48,null,22,"Участник","Эткеева Маргарита Геннадьевна","Гимназия 94"]
[94,"Приволжский район","ОШИ «IT-лицей ФГАОУ ВО «К(П)ФУ»","Садыков","Р","Н",8,8,18,48,null,18,"Участник","Гайнутдинова Суюмбика Закировна","ОШИ \"IT-лицей ФГАОУ ВО К(П)ФУ"]
[80,"Авиастроительный район","МБОУ \"Гимназия №33\" Авиастроительного района","Сафина","Л","Р",8,8,28,48,null,28,"Призер","Горбунова Любовь Васильевна","Гимназия № 33"]
[93,"Вахитовский район","МАОУ СОШИ «СОлНЦе» Вахитовского района","Склярова","Л","А",8,8,20,48,null,20,"Участник","Афлетонов Наиль Абузарович","МАОУ СОШИ \"СОлНЦе\""]
[81,"Приволжский район","МАОУ «Гимназия №139-Центр образования» Приволжского района ","Суханов","В","А",8,8,28,48,null,28,"Призер","Гайнутдинова Суюмбика Закировна","МАОУ \"Гимназия №139 - Центр Образования\" Приволжского района"]
[97,"Приволжский район","ОШИ «IT-лицей ФГАОУ ВО «К(П)ФУ»","Улесов","А","А",8,8,15,48,null,15,"Участник","Гайнутдинова Суюмбика Закировна","ОШИ \"IT-лицей ФГАОУ ВО К(П)ФУ"]
[68,"Московский район","МАОУ \"Лицей-интернат №2\" Московского района ","Фаттахов","Д","Г",8,8,33,48,null,33,"Призер","Шакиров Ильдар Акдясович","МАОУ \"Лицей-интернат №2\" Московского района "]
[95,"Советский район","МБОУ \"Гимназия №93\" Советского района ","Хабеев","А","А",8,8,18,48,null,18,"Участник","Арсланова Римма Габдулхаковна","МБОУ \"Гимназия №93\""]
[74,"Приволжский район","МАОУ «Гимназия №19» Приволжского района ","Хабибулина","А","Н",8,8,30,48,null,30,"Призер","Фасфиев Булат Рашидович","МАОУ Гимназия 19"]
[84,"Авиастроительный район","МБОУ \"Гимназия №33\" Авиастроительного района","Хадеев","Р","Д",8,8,26,48,null,26,"Призер","Горбунова Любовь Васильевна","Гимназия № 33"]
[88,"Приволжский район","ОШИ «IT-лицей ФГАОУ ВО «К(П)ФУ»","Хуснутдинов","Э","Р",8,8,25,48,null,25,"Призер","Гайнутдинова Суюмбика Закировна","ОШИ \"IT-лицей ФГАОУ ВО К(П)ФУ"]
[104,"Приволжский район","МБОУ «Лицей № 78 \"Фарватер\" » Приволжского района ","Якубов","К","Р",8,8,10,48,null,10,"Участник","Насырова Р.Р.","МБОУ \"Лицей №78 \"Фарватер\""]
[69,"Вахитовский район","МАОУ \"Лицей №131\" Вахитовского района ","Яруллин ","Б","А",8,8,33,48,null,33,"Призер","Серебрянская Лювиза Минисламовна","МАОУ \"Лицей №131\" Вахитовского района г.Казани"]
[138,"Вахитовский район","Лицей имени Н.И. Лобачевского КФУ Вахитовского района","Ахметгалиев","А","М",9,9,25,48,null,{"$f":"I94+K94","v":25},"Призер","Галеев Алмаз Ильсурович","ОШИ \"Лицей имени Н.И. Лобачевского\" КФУ"]
[135,"Приволжский район","Лицей-интернат «IТ-лицей К(П)ФУ»","Ахметзянов","А","И",8,9,31,48,null,31,"Призер","Гайнутдинова Суюмбика Закировна","                                                                                                                                                                                                                                                                                             Лицей-интернат «IТ-лицей К(П)ФУ» "]
[139,"Приволжский район","Лицей-интернат «IТ-лицей К(П)ФУ»","Байрамов","М","Ф",9,9,17,48,11,28,"Призер","Гайнутдинова Суюмбика Закировна","                                                                                                                                                                                                                                                                                             Лицей-интернат «IТ-лицей К(П)ФУ» "]
[154,"Московский район","МБОУ \"Гимназия №75\" Московского района ","Борисов","Н","О",9,9,7,48,null,7,"Участник","Гатауллина Маргарита Васильевна","МБОУ \"Гимназия №75\"Московского района г. Казани"]
[155,"Авиастроительный район","МБОУ \"Средняя школа № 119\" Авиастроительного района ","Вдовенко","А","А",9,9,7,48,null,7,"Участник","Родыгин Сергей Иванович","МБОУ \"Средняя школа №119\" Авиастроительного района г. Казани"]
[149,"Советский район","МБОУ \"Гимназия №93\" Советского района ","Габидуллина","Р","Р",9,9,10,48,null,10,"Участник","Арсланова Римма Габдулхаковна","МБОУ \"Гимназия №93\""]
[145,"Авиастроительный район","МБОУ \"Гимназия №33\" Авиастроительного района","Губайдуллин","С","Е",9,9,12,48,null,12,"Участник","Горбунова Любовь Васильевна","Гимназия № 33"]
[156,"Советский район","МБОУ \" СОШ №144\" Советского района ","Давыдов","В","А",9,9,7,48,null,7,"Участник","Сулейманова Альфия Сайфулловна","МБОУ \"Школа 144\""]
[130,"Приволжский район","МБОУ «Гимназия №6»","Дрейт","П","Ю",8,9,40,48,null,40,"Призер","Мочалова Ксения Борисовна","   МБОУ «Гимназия №6» "]
[160,"Ново-Савиновский район","МБОУ \"Школа №71\" Ново-Савиновского района","Загиров","А","И",9,9,4,48,null,4,"Участник","Мубаракшина Светлана Рашидовна","МБОУ \"Школа №71\" г.Казани"]
[146,"Приволжский район","МБОУ «Лицей № 78 \"Фарватер\" » Приволжского района ","Захарова","К","В",9,9,12,48,null,12,"Участник","Мухарлямова Г.Г.","МБОУ \"Лицей №78 \"Фарватер\""]
[158,"Московский район","МБОУ \"Гимназия №17\" Московского района ","Иванов","Е","Ю",9,9,5,48,null,5,"Участник","Гайфуллин Ильнар Латыйпович","гимназия №17"]
[150,"Ново-Савиновский район","МБОУ \"Школа №9\" Ново-Савиновского района","Ильин","М","К",9,9,10,48,null,10,"Участник","Симонова Ирина Степановна","МБОУ \"Школа №9\""]
[143,"Приволжский район","Лицей-интернат «IТ-лицей К(П)ФУ»","Иосипов","А","М",8,9,14,48,null,14,"Участник","Гайнутдинова Суюмбика Закировна","                                                                                                                                                                                                                                                                                             Лицей-интернат «IТ-лицей К(П)ФУ» "]
[131,"Московский район","МАОУ \"Лицей-интернат №2\" Московского района ","Каримуллин","К","Н",9,9,40,48,null,40,"Призер","Шакиров Ильдар Акдясович","МАОУ \"Лицей-интернат №2\" Московского района "]
[157,"Советский район","МБОУ \"Гимназия №8 -Центр образования\" Советского района ","Колочков","И","М",9,9,7,48,null,7,"Участник","Яковлева Надежда Петровна","Гимназия 8 - ЦО"]
[140,"Авиастроительный район","МБОУ \"Средняя школа № 119\" Авиастроительного района ","Кройтор","Д","Т",9,9,17,48,null,17,"Участник","Родыгин Сергей Иванович","МБОУ \"Средняя школа №119\" Авиастроительного района г. Казани"]
[147,"Советский район","МБОУ \"Гимназия №93\" Советского района ","Латыпова","А","Р",9,9,12,48,null,12,"Участник","Арсланова Римма Габдулхаковна","МБОУ \"Гимназия №93\""]
[151,"Ново-Савиновский район","МБОУ \"Лицей №177\" Ново-Савиновского района","Махмутов","Р","С",9,9,10,48,null,10,"Участник","Преображенский Алексей Олегович","МБОУ \"Лицей №177\""]
[141,"Ново-Савиновский район","МБОУ \"Лицей №177\" Ново-Савиновского района","Микеркин","С","А",9,9,17,48,null,17,"Участник","Преображенский Алексей Олегович","МБОУ \"Лицей №177\""]
[133,"Авиастроительный район","МБОУ \"Гимназия №33\" Авиастроительного района","Мифтяков","Т","А",9,9,36,48,null,36,"Призер","Горбунова Любовь Васильевна","Гимназия № 33"]
[159,"Советский район","МБОУ \"Многопрофильная школа №181\" Советского района ","Нургалиева","Д","А",9,9,5,48,null,5,"Участник","Шагиева Людмила Валерьевна","МБОУ \"Многопрофильная школа №181\""]
[134,"Приволжский район","Лицей-интернат «IТ-лицей К(П)ФУ»","Сабирзянов","М","Р",8,9,34,48,null,34,"Призер","Гайнутдинова Суюмбика Закировна","                                                                                                                                                                                                                                                                                            Лицей-интернат «IТ-лицей К(П)ФУ» "]
[148,"Ново-Савиновский район","Инженерный лицей-интернат КНИТУ-КАИ Ново-Савиновского района","Саляхеев  ","К","А",9,9,12,48,null,12,"Участник","Заострожных Анна Мария Андреевна","Инженерный лицей-интернат КНИТУ-КАИ"]
[152,"Советский район","МБОУ \"Гимназия №8 -Центр образования\" Советского района ","Сафиуллин","А","Э",9,9,10,48,null,10,"Участник","Яковлева Надежда Петровна","Гимназия 8 - ЦО"]
[132,"Приволжский район","Лицей-интернат «IТ-лицей К(П)ФУ»","Ситдиков","К","Р",8,9,40,48,null,40,"Призер","Гайнутдинова Суюмбика Закировна","                                                                                                                                                                                                                                                                                             Лицей-интернат «IТ-лицей К(П)ФУ» "]
[153,"Авиастроительный район","МБОУ \"Гимназия №33\" Авиастроительного района","Туль","В","Ф",9,9,10,48,null,10,"Участник","Горбунова Любовь Васильевна","Гимназия № 33"]
[137,"Приволжский район","Лицей-интернат «IТ-лицей К(П)ФУ»","Хабибуллин","А","М",9,9,26,48,null,26,"Призер","Гайнутдинова Суюмбика Закировна"]
[136,"Московский район","МБОУ \"СОШ №20\" Московского района ","Хайбуллин","Д","В",9,9,30,48,null,30,"Призер","Соловьева Ольга Павловна","МБОУ СОШ 20"]
[144,"Ново-Савиновский район","МБОУ \"Гимназия 155\" Ново-Савиновского района","Шагимуллин","С","А",9,9,14,48,null,14,"Участник","Закиров Амир Ильдарович","Гимназия №155"]
[142,"Ново-Савиновский район","Инженерный лицей КНИТУ-КАИ","Шарафиев ","Т","Э",8,9,16,48,null,16,"Участник","Заострожных Анна Мария Андреевна","Инженерный лицей КНИТУ-КАИ "]
[129,"Московский район","МАОУ \"Лицей-интернат №2\" Московского района ","Шарыпов","Ю","З",9,9,44,48,null,44,"Победитель","Шакиров Ильдар Акдясович","МАОУ \"Лицей-интернат №2\" Московского района "]
[193,"Приволжский район","МАОУ «Гимназия №139-Центр образования» Приволжского района ","Акулов","М","А",10,10,13,48,null,{"$f":"I126+K126","v":13},"Участник","Гайнутдинова Суюмбика Закировна","МАОУ \"Гимназия №139 - Центр Образования\" Приволжского района"]
[171,"Приволжский район","ОШИ «IT-лицей ФГАОУ ВО «К(П)ФУ»","Апаева ","П","Д",10,10,46,48,null,46,"Призер","Гайнутдинова Суюмбика Закировна","ОШИ \"IT-лицей ФГАОУ ВО К(П)ФУ"]
[194,"Советский район","МБОУ \"СОШ №175\" Советского района ","Ахметзянов","Д","Р",10,10,12,48,null,12,"Участник","Хафизова Г.М.","МБОУ \"Школа №175\""]
[178,"Приволжский район","ОШИ «IT-лицей ФГАОУ ВО «К(П)ФУ»","Баталин","Д","Р",10,10,32,48,null,32,"Призер","Гайнутдинова Суюмбика Закировна","ОШИ \"IT-лицей ФГАОУ ВО К(П)ФУ"]
[179,"Советский район","МБОУ \"СОШ №175\" Советского района ","Бирюкова","Ю","В",10,10,30,48,null,30,"Призер","Хафизова Г.М.","МБОУ \"Школа №175\""]
[191,"Приволжский район","МБОУ «Гимназия №6» Приволжского района ","Вафин ","Р","Р",10,10,14,48,null,14,"Участник","ПолукееваВ.М.","МБОУ\"Гимназия №6"]
[195,"Авиастроительный район","МБОУ \"Гимназия №36\" Авиастроительного района","Викторова ","К","А",10,10,12,48,null,12,"Участник","Абрамова Наталья Юрьевна","МБОУ \"Гимназия №36\""]
[186,"Приволжский район","Лицей-интернат «IТ-лицей К(П)ФУ»","Гарипов","Т","Р",10,10,24,48,null,24,"Призер","Гайнутдинова Суюмбика Закировна","            Лицей-интернат «IТ-лицей К(П)ФУ» "]
[173,"Московский район","МАОУ \"Лицей-интернат №2\" Московского района ","Гильметдинов","Т","И",10,10,41,48,null,41,"Призер","Шакиров Ильдар Акдясович","МАОУ \"Лицей-интернат №2\" Московского района "]
[196,"Авиастроительный район","МБОУ \"Гимназия №33\" Авиастроительного района","Гимушина","Р","А",10,10,12,48,null,12,"Участник","Горбунова Любовь Васильевна","Гимназия № 33"]
[184,"Приволжский район","МБОУ «Лицей № 78 \"Фарватер\" » Приволжского района ","Гребнева","Э","М",10,10,24,48,null,24,"Призер","Мухарлямова Г.Г.","МБОУ \"Лицей №78 \"Фарватер\""]
[174,"Авиастроительный район","МБОУ \"Гимназия №33\" Авиастроительного района","Егоров","Б","О",10,10,37,48,null,37,"Призер","Горбунова Любовь Васильевна","Гимназия № 33"]
[185,"Авиастроительный район","МАОУ\"Гимназия № 37\" Авиастроительного района ","Королёва","И","А",10,10,24,48,null,24,"Призер","Григорьева Анна Игоревна","Лицей № 35"]
[192,"Советский район","МБОУ «СОШ №171» Советского района","Миндарова ","А","И",10,10,14,48,null,14,"Участник","Юнусова Н.Г.","МБОУ СОШ №171"]
[177,"Приволжский район","Лицей-интернат «IТ-лицей К(П)ФУ»","Муратов","М","А",10,10,33,48,null,33,"Призер","Гайнутдинова Суюмбика Закировна","                                                                                                                                                                                                                                                                                               Лицей-интернат «IТ-лицей К(П)ФУ» "]
[188,"Кировский район","МАОУ «Гимназия-интернат №4»","Мустакимова","Д","И",10,10,21,48,null,21,"Участник",null,"МАОУ «Гимназия-интернат №4» "]
[197,"Приволжский район","Лицей-интернат «IТ-лицей К(П)ФУ»","Мясников","Р","Т",10,10,12,48,null,12,"Участник","Гайнутдинова Суюмбика Закировна","                                                                                                                                                                                                                                                                                               Лицей-интернат «IТ-лицей К(П)ФУ» "]
[198,"Советский район","МБОУ \"Многопрофильная школа №181\" Советского района ","Нигматуллин","Р","Р",10,10,8,48,null,8,"Участник","Шагиева Людмила Валерьевна","МБОУ \"Многопрофильная школа №181\""]
[169,"Советский район","МБОУ «Гимназия №93 »","Платонов","М","И",10,10,48,48,null,48,"Победитель","Арсланова Римма Габдулхаковна","МБОУ «Гимназия №93 » "]
[170,"Ново-Савиновский район","Инженерный лицей-интернат КНИТУ-КАИ Ново-Савиновского района","Поморцев","Г","И",10,10,48,48,null,48,"Победитель","Заострожных Анна Мария Андреевна","Инженерный лицей-интернат КНИТУ-КАИ"]
[189,"Приволжский район","МБОУ «Лицей №35 – образовательный центр «Галактика» Приволжского района ","Пшеничникова ","А","А",10,10,20,48,null,20,"Участник","Григорьева Анна Игоревна","МБОУ \"Лицей №35\" Приволжского района г.Казань"]
[183,"Советский район","МБОУ «СОШ №171» Советского района","Разубаев","Д","И",10,10,26,48,null,26,"Призер","Юнусова Н.Г.","МБОУ СОШ №171"]
[182,"Приволжский район","ОШИ «IT-лицей ФГАОУ ВО «К(П)ФУ»","Сегова","П","А",10,10,28,48,null,28,"Призер","Гайнутдинова Суюмбика Закировна","ОШИ \"IT-лицей ФГАОУ ВО К(П)ФУ"]
[181,"Приволжский район","ОШИ «IT-лицей ФГАОУ ВО «К(П)ФУ»","Синицин","Д","К",10,10,29,48,null,29,"Призер","Гайнутдинова Суюмбика Закировна","ОШИ \"IT-лицей ФГАОУ ВО К(П)ФУ"]
[199,"Авиастроительный район","МБОУ \"Гимназия №33\" Авиастроительного района","Сиразиева","Л","Р",10,10,4,48,null,4,"Участник","Горбунова Любовь Васильевна","Гимназия № 33"]
[172,"Ново-Савиновский район","Инженерный лицей-интернат КНИТУ-КАИ Ново-Савиновского района","Титов","А","А",10,10,42,48,null,42,"Призер","Заострожных Анна Мария Андреевна","Инженерный лицей-интернат КНИТУ-КАИ"]
[175,"Приволжский район","ОШИ «IT-лицей ФГАОУ ВО «К(П)ФУ»","Файзуллин","А","Р",10,10,36,48,null,36,"Призер","Гайнутдинова Суюмбика Закировна","ОШИ \"IT-лицей ФГАОУ ВО К(П)ФУ"]
[176,"Московский район","МБОУ \"Татарская гимназия №2 при КФУ\" Московского района ","Хамидуллин ","А","А",10,10,34,48,null,34,"Призер","Мухаметзянова Алсу Ильдусовна","гимназия №2"]
[180,"Приволжский район","Лицей-интернат «IТ-лицей К(П)ФУ»","Хафизов","Р","А",10,10,30,48,null,30,"Призер","Гайнутдинова Суюмбика Закировна","                                                                                                                                                                                                                                                                                                Лицей-интернат «IТ-лицей К(П)ФУ» "]
[190,"Приволжский район","МБОУ «Гимназия №6» Приволжского района ","Черепанов","А","А",10,10,20,48,null,20,"Участник","ПолукееваВ.М.","МБОУ\"Гимназия №6"]
[187,"Приволжский район","МАОУ «Гимназия №19» Приволжского района ","Шарапов","Д","А",10,10,23,48,1,24,"Призер","Христофорова Наталия Юрьевна","МАОУ Гимназия 19"]
[229,"Московский район","МБОУ \"Гимназия №75\" Московского района ","Арефьев","А","С",11,11,3,48,null,{"$f":"I157","v":3},"Участник","Гатауллина Маргарита Васильевна","МБОУ \"Гимназия №75\"Московского района г. Казани"]
[228,"Ново-Савиновский район","МБОУ \"Школа №71\" Ново-Савиновского района","Бабичев","И","Н",11,11,4,48,null,4,"Участник","Мубаракшина Светлана Рашидовна","МБОУ \"Школа №71\" г.Казани"]
[230,"Кировский район","МБОУ \"Татарская гимназия №15\" Кировского района ","Валиуллин","К","З",11,11,1,48,null,1,"Участник","Марвин Олег Борисович","Гимназия№15"]
[210,"Московский район","МАОУ \"Лицей-интернат №2\" Московского района ","Галимов","Б","А",11,11,43,48,null,43,"Победитель","Шакиров Ильдар Акдясович","МАОУ \"Лицей-интернат №2\" Московского района "]
[213,"Приволжский район","ОШИ «IT-лицей ФГАОУ ВО «К(П)ФУ»","Гусманов","Н","А",11,11,38,48,null,38,"Призер","Гайнутдинова Суюмбика Закировна","ОШИ \"IT-лицей ФГАОУ ВО К(П)ФУ"]
[217,"Приволжский район","МБОУ «Лицей №83»","Депресов","А","В",11,11,25,48,null,25,"Призер","Гафуров Зуфар Ганиевич"," МБОУ «Лицей №83-Центр образования» "]
[218,"Советский район","МБОУ \"Школа №101 им. П.А. Полушкина - Центр образования\" Советского района ","Евлампиев  ","Н","Ю",11,11,24,48,null,24,"Призер","Чуракова Лидия Григорьевна","МБОУ«Средняя общеобразовательная школа №101 имени П.А. Полушкина - Центр образования » "]
[219,"Ново-Савиновский район","МБОУ \"Школа №9\" Ново-Савиновского района","Карасев","И","Д",11,11,24,48,null,24,"Призер","Жучков Роман Яковлевич","МБОУ \"Школа №9\""]
[224,"Ново-Савиновский район","МБОУ \"Школа №71\" Ново-Савиновского района","Князев","В","С",11,11,8,48,null,8,"Участник","Мубаракшина Светлана Рашидовна","МБОУ \"Школа №71\" г.Казани"]
[211,"Ново-Савиновский район","Инженерный лицей-интернат КНИТУ-КАИ Ново-Савиновского района","Корнев","А","В",11,11,40,48,null,40,"Призер","Заострожных Анна Мария Андреевна","Инженерный лицей-интернат КНИТУ-КАИ"]
[220,"Приволжский район","МАОУ «Гимназия №139-Центр образования» Приволжского района ","Корсаков","Н","В",11,11,20,48,null,20,"Участник","Гайнутдинова Суюмбика Закировна","МАОУ \"Гимназия №139 - Центр Образования\" Приволжского района"]
[223,"Вахитовский район","МБОУ «Средняя общеобразовательная школа №12»","Куликова","К","О",11,11,10,48,null,10,"Участник","Алтынбаева Лиля Анваровна","МБОУ «Средняя общеобразовательная школа №12» "]
[215,"Приволжский район","МАОУ «Гимназия №139-Центр образования» Приволжского района ","Лавренюк","А","С",11,11,36,48,null,36,"Призер","Гайнутдинова Суюмбика Закировна","МАОУ \"Гимназия №139 - Центр Образования\" Приволжского района"]
[222,"Московский район","МБОУ \"Гимназия №75\" Московского района ","Максишкин","Е","С",11,11,13,48,null,13,"Участник","Гатауллина Маргарита Васильевна","МБОУ \"Гимназия №75\"Московского района г. Казани"]
[225,"Приволжский район","МБОУ «Гимназия №6» Приволжского района ","Панина","А","В",11,11,7,48,null,7,"Участник","Мочалова К.Б.","МБОУ\"Гимназия №6"]
[226,"Советский район","МБОУ \"Гимназия №8 -Центр образования\" Советского района ","Садретдинов","А","Д",11,11,6,48,null,6,"Участник","Яковлева Надежда Петровна","Гимназия 8 - ЦО"]
[212,"Приволжский район","Лицей-интернат «IТ-лицей К(П)ФУ»","Сафин","А","Д",11,11,39,48,null,39,"Призер","Гайнутдинова Суюмбика Закировна","Лицей-интернат «IТ-лицей К(П)ФУ»"]
[216,"Московский район","МАОУ \"Лицей-интернат №2\" Московского района ","Сафин","А","Р",11,11,34,48,null,34,"Призер","Шакиров Ильдар Акдясович","МАОУ \"Лицей-интернат №2\" Московского района "]
[221,"Советский район","МБОУ \"Гимназия №93\" Советского района ","Тынысова","Л","М",11,11,14,48,null,14,"Участник","Арсланова Римма Габдулхаковна","МБОУ \"Гимназия №93\""]
[227,"Кировский район","МБОУ \"Татарская гимназия №15\" Кировского района ","Хуснияров","М","Р",11,11,5,48,null,5,"Участник","Марвин Олег Борисович","Гимназия№15"]
[214,"Приволжский район","ОШИ «IT-лицей ФГАОУ ВО «К(П)ФУ»","Юдин","Д","И",11,11,37,48,null,37,"Призер","Гайнутдинова Суюмбика Закировна","ОШИ \"IT-лицей ФГАОУ ВО К(П)ФУ"]